bitfinex/quotes_BTCUSD_20250115
["timestamp","ask_amount","ask_price","bid_price","bid_amount"]
[1736923618779,0.14554997,97148.0,97147.0,0.31060193]
[1736923619800,0.14554997,97148.0,97147.0,0.31460193]
[1736923620002,0.23760925,97148.0,97147.0,0.31460193]
[1736923620549,0.23760925,97148.0,97147.0,0.31060193]
[1736923620742,0.44151559,97148.0,97147.0,0.31060193]
[1736923621592,0.34945631,97148.0,97147.0,0.31060193]
[1736923621962,0.36559563,97148.0,97147.0,0.31060193]
[1736923624973,0.26791621,97148.0,97147.0,0.31060193]
[1736923625546,0.25177689,97148.0,97147.0,0.31060193]
[1736923629778,0.26791612,97148.0,97147.0,0.31060193]
[1736923633205,0.25177689,97148.0,97147.0,0.31060193]
[1736923636513,0.26791607,97148.0,97147.0,0.31060193]
[1736923637517,0.34627785,97148.0,97147.0,0.31060193]
[1736923637717,0.26791607,97148.0,97147.0,0.31060193]
[1736923639631,0.16368915,97148.0,97147.0,0.31060193]
[1736923641357,0.16168915,97148.0,97147.0,0.31060193]
[1736923641720,0.16368915,97148.0,97147.0,0.31060193]
[1736923642509,0.08188915,97148.0,97147.0,0.31060193]
[1736923642695,0.03528915,97148.0,97147.0,0.31060193]
[1736923642998,0.01914997,97148.0,97147.0,0.31060193]
[1736923643206,0.01714997,97148.0,97147.0,0.31060193]
[1736923643341,0.01914997,97148.0,97147.0,0.31060193]
[1736923643950,0.01714997,97148.0,97147.0,0.31060193]
[1736923644362,0.01814997,97148.0,97147.0,0.31060193]
[1736923646208,0.03428832,97148.0,97147.0,0.31060193]
[1736923650772,0.03328832,97148.0,97147.0,0.31060193]
[1736923650987,0.03428832,97148.0,97147.0,0.31060193]
[1736923651543,0.03328832,97148.0,97147.0,0.31060193]
[1736923652108,0.03428832,97148.0,97147.0,0.31060193]
[1736923653382,0.01814997,97148.0,97147.0,0.31060193]
[1736923657902,0.03428851,97148.0,97147.0,0.31060193]
[1736923662764,0.12634779,97148.0,97147.0,0.31060193]
[1736923664412,0.03428851,97148.0,97147.0,0.31060193]
[1736923665571,0.17292419,97148.0,97147.0,0.31060193]
[1736923666237,0.41976862,97148.0,97147.0,0.31060193]
[1736923666385,0.50363008,97148.0,97147.0,0.31060193]
[1736923666808,0.50363008,97148.0,97147.0,0.00179193]
[1736923667262,0.50263008,97148.0,97147.0,0.00179193]
[1736923667732,0.70794106,97148.0,97147.0,0.00179193]
[1736923667931,0.70794106,97148.0,97147.0,0.00279193]
[1736923668100,0.70594106,97148.0,97147.0,0.00279193]
[1736923668712,0.70594106,97148.0,97147.0,0.00179193]
[1736923669115,0.71628282,97148.0,97147.0,0.00279193]
[1736923670176,0.62028282,97148.0,97147.0,0.00279193]
[1736923670586,0.72028282,97148.0,97147.0,0.00279193]
[1736923670932,0.71628282,97148.0,97147.0,0.00279193]
[1736923671490,0.72028282,97148.0,97147.0,0.00279193]
[1736923671721,0.70994106,97148.0,97147.0,0.00279193]
[1736923671890,0.59272355,97148.0,97147.0,0.00279193]
[1736923672331,0.59272355,97148.0,97147.0,0.00179193]
[1736923672706,0.59372355,97148.0,97147.0,0.00279193]
[1736923672917,0.59272355,97148.0,97147.0,0.00179193]
[1736923673297,0.59372355,97148.0,97147.0,0.00279193]
[1736923674606,0.653006,97148.0,97147.0,0.00279193]
[1736923674908,0.58972355,97148.0,97147.0,0.00279193]
[1736923675108,0.59272355,97148.0,97147.0,0.00279193]
[1736923675313,0.59172355,97148.0,97147.0,0.00179193]
[1736923675727,0.59272355,97148.0,97147.0,0.00279193]
[1736923676130,0.60886315,97148.0,97147.0,0.00279193]
[1736923676334,0.59272355,97148.0,97147.0,0.00279193]
[1736923676511,0.69595047,97148.0,97147.0,0.00179193]
[1736923677050,0.69395047,97148.0,97147.0,0.00179193]
[1736923677246,0.69595047,97148.0,97147.0,0.00179193]
[1736923677449,0.48749663,97148.0,97147.0,0.00179193]
[1736923682664,0.50363659,97148.0,97147.0,0.00179193]
[1736923682869,0.48749663,97148.0,97147.0,0.00179193]
[1736923683247,0.59172355,97148.0,97147.0,0.00179193]
[1736923683450,0.69595047,97148.0,97147.0,0.00179193]
[1736923688760,0.79595047,97148.0,97147.0,0.00179193]
[1736923689540,0.91690806,97148.0,97147.0,0.00179193]
[1736923690171,0.91490806,97148.0,97147.0,0.00179193]
[1736923690329,0.91390806,97148.0,97147.0,0.00179193]
[1736923690511,0.91490806,97148.0,97147.0,0.00279193]
[1736923692140,0.93104949,97148.0,97147.0,0.00279193]
[1736923692346,0.93504949,97148.0,97147.0,0.00279193]
[1736923692609,1.41353648,97148.0,97147.0,0.00279193]
[1736923693006,1.39339505,97148.0,97147.0,0.00279193]
[1736923693208,1.39739505,97148.0,97147.0,0.00279193]
[1736923693373,1.72719505,97148.0,97147.0,0.00279193]
[1736923694278,1.72619505,97148.0,97147.0,0.00179193]
[1736923694681,1.73319505,97148.0,97147.0,0.00279193]
[1736923695717,1.72919505,97148.0,97147.0,0.00279193]
[1736923696073,1.73219505,97148.0,97147.0,0.00279193]
[1736923696698,1.72519505,97148.0,97147.0,0.00179193]
[1736923698482,2.00278943,97148.0,97147.0,0.00179193]
[1736923698994,1.99978943,97148.0,97147.0,0.00179193]
[1736923699497,2.02693086,97148.0,97147.0,0.00279193]
[1736923699661,2.01993086,97148.0,97147.0,0.00179193]
[1736923699859,2.01593086,97148.0,97147.0,0.00179193]
[1736923700071,2.02493086,97148.0,97147.0,0.00279193]
[1736923700278,2.02893086,97148.0,97147.0,0.00279193]
[1736923702773,2.01278943,97148.0,97147.0,0.00279193]
[1736923704168,1.53430244,97148.0,97147.0,0.00279193]
[1736923706190,1.55044423,97148.0,97147.0,0.00279193]
[1736923706391,1.75095051,97148.0,97147.0,0.00279193]
[1736923710772,1.75082662,97148.0,97147.0,0.00279193]
[1736923711944,1.77382662,97148.0,97147.0,0.00279193]
[1736923713053,1.75768483,97148.0,97147.0,0.00279193]
[1736923720703,1.77382667,97148.0,97147.0,0.00279193]
[1736923726257,1.75768483,97148.0,97147.0,0.00279193]
[1736923726690,0.57089455,97130.0,97129.0,0.00179235]
[1736923726901,0.69812147,97130.0,97129.0,0.00179235]
[1736923727924,1.04006813,97130.0,97129.0,0.00179235]
[1736923728130,1.04106813,97130.0,97129.0,0.00179235]
[1736923728717,1.04506813,97130.0,97129.0,0.00179235]
[1736923728920,1.14929505,97130.0,97129.0,0.00179235]
[1736923729358,1.15984899,97130.0,97129.0,0.00179235]
[1736923729572,1.17646092,97130.0,97129.0,0.00179235]
[1736923730347,1.17546092,97130.0,97129.0,0.00279235]
[1736923730562,1.66256158,97130.0,97129.0,0.00279235]
[1736923730756,1.66356158,97130.0,97129.0,0.00279235]
[1736923731284,1.66256158,97130.0,97129.0,0.00279235]
[1736923732451,1.99236158,97130.0,97129.0,0.00279235]
[1736923732676,2.01250661,97130.0,97129.0,0.00279235]
[1736923736907,1.99636158,97130.0,97129.0,0.00279235]
[1736923741121,2.0125071,97130.0,97129.0,0.00279235]
[1736923741551,1.99636158,97130.0,97129.0,0.00279235]
[1736923743611,1.97336158,97130.0,97129.0,0.00279235]
[1736923743995,1.86913466,97130.0,97129.0,0.00279235]
[1736923744615,1.84852273,97130.0,97129.0,0.00279235]
[1736923744840,1.27042207,97130.0,97129.0,0.00279235]
[1736923744978,1.37042207,97130.0,97129.0,0.00279235]
[1736923747996,1.27042207,97130.0,97129.0,0.00279235]
[1736923748201,1.47464899,97130.0,97129.0,0.00279235]
[1736923763169,1.37464899,97130.0,97129.0,0.00279235]
[1736923763371,0.81792147,97130.0,97129.0,0.00279235]
[1736923763739,0.91792147,97130.0,97129.0,0.00279235]
[1736923764116,0.66792147,97130.0,97129.0,0.00279235]
[1736923764319,0.65492147,97130.0,97129.0,0.00179235]
[1736923764525,0.66292147,97130.0,97129.0,0.00279235]
[1736923764706,0.66492147,97130.0,97129.0,0.00279235]
[1736923764920,0.70974769,97130.0,97129.0,0.00279235]
[1736923766412,0.70974769,97130.0,97129.0,0.00179235]
[1736923766413,1.04287077,97130.0,97129.0,0.00179235]
[1736923766612,0.99804455,97130.0,97129.0,0.00179235]
[1736923766787,1.00304455,97130.0,97129.0,0.00279235]
[1736923767629,1.18788324,97130.0,97129.0,0.00279235]
[1736923768279,0.85808324,97130.0,97129.0,0.00279235]
[1736923768747,0.67324455,97130.0,97129.0,0.00279235]
[1736923768959,0.77747147,97130.0,97129.0,0.00279235]
[1736923772772,1.00849663,97130.0,97129.0,0.00279235]
[1736923777344,0.77747147,97130.0,97129.0,0.00279235]
[1736923781637,1.00849663,97130.0,97129.0,0.00279235]
[1736923783741,0.90426971,97130.0,97129.0,0.00279235]
[1736923784467,0.90226971,97130.0,97129.0,0.00279235]
[1736923784973,0.90426971,97130.0,97129.0,0.00279235]
[1736923785141,0.59413379,97130.0,97129.0,0.00279235]
[1736923785347,0.01998555,97130.0,97129.0,0.00279235]
[1736923785542,0.01498555,97130.0,97129.0,0.08029235]
[1736923785721,0.01598555,97130.0,97129.0,0.08029235]
[1736923785922,0.02098555,97130.0,97129.0,0.08129235]
[1736923787041,0.01998555,97130.0,97129.0,0.08129235]
[1736923787252,0.02198555,97130.0,97129.0,0.08129235]
[1736923787720,0.02098555,97130.0,97129.0,0.08129235]
[1736923788102,0.02098555,97130.0,97129.0,0.08329235]
[1736923789567,0.01498555,97130.0,97129.0,0.08229235]
[1736923790825,0.01498555,97135.0,97131.0,0.0756]
[1736923791680,0.01498555,97135.0,97131.0,0.487414]
[1736923791882,0.01498555,97134.0,97131.0,0.487414]
[1736923792117,0.01498555,97132.0,97131.0,0.282507]
[1736923792318,0.01498555,97134.0,97131.0,0.282507]
[1736923792520,0.01498555,97135.0,97132.0,0.205904]
[1736923792734,0.01498555,97135.0,97133.0,0.00102942]
[1736923793056,0.01498555,97135.0,97134.0,0.205901]
[1736923795607,0.01498555,97135.0,97134.0,0.206901]
[1736923796419,0.01498555,97135.0,97134.0,0.210901]
[1736923798546,0.01498555,97139.0,97134.0,0.416802]
[1736923798766,0.0008537,97147.0,97134.0,0.416802]
[1736923798767,0.01498555,97135.0,97134.0,0.416802]
[1736923801091,0.01498555,97135.0,97134.0,0.415802]
[1736923801636,0.01498555,97135.0,97134.0,0.416802]
[1736923802067,0.01498555,97135.0,97134.0,0.415802]
[1736923802288,0.03112602,97135.0,97134.0,0.415802]
[1736923802491,0.03112602,97135.0,97134.0,0.416802]
[1736923803018,0.01498555,97135.0,97134.0,0.416802]
[1736923804775,0.01498555,97139.0,97134.0,0.416802]
[1736923805631,0.01498555,97139.0,97134.0,0.415802]
[1736923805983,0.01498555,97135.0,97134.0,0.415802]
[1736923806134,0.01498555,97135.0,97134.0,0.416802]
[1736923807895,0.01498555,97135.0,97134.0,0.415802]
[1736923808263,0.01498555,97135.0,97134.0,0.416802]
[1736923808463,0.01498555,97135.0,97134.0,0.412802]
[1736923809017,0.01498555,97135.0,97134.0,0.414802]
[1736923809425,0.01498555,97135.0,97134.0,0.412802]
[1736923810137,0.01498555,97135.0,97134.0,0.416802]
[1736923811239,0.01498555,97135.0,97134.0,0.41859435]
[1736923811622,0.01498555,97137.0,97134.0,0.41859435]
[1736923811823,0.01498555,97139.0,97134.0,0.41859435]
[1736923812459,0.01498555,97139.0,97134.0,0.41759435]
[1736923812673,0.01498555,97143.0,97142.0,0.205884]
[1736923812888,0.01498555,97143.0,97142.0,0.284384]
[1736923814552,0.01498555,97143.0,97142.0,0.205884]
[1736923815499,0.01498555,97143.0,97142.0,0.207884]
[1736923815908,0.0008537,97147.0,97144.0,0.205879]
[1736923816189,0.0008537,97147.0,97146.0,0.205875]
[1736923816406,0.01699274,97147.0,97146.0,0.205875]
[1736923817178,0.03197829,97147.0,97146.0,0.205875]
[1736923818673,0.03197829,97147.0,97146.0,0.206875]
[1736923819050,0.01699274,97147.0,97146.0,0.205875]
[1736923819251,0.03197829,97147.0,97146.0,0.205875]
[1736923819453,0.03197829,97147.0,97146.0,0.207875]
[1736923819834,0.03197829,97147.0,97146.0,0.211875]
[1736923820255,0.01583925,97147.0,97146.0,0.211875]
[1736923822898,0.0008537,97147.0,97146.0,0.211875]
[1736923823267,0.0008537,97147.0,97146.0,0.21366735]
[1736923823781,0.0008537,97147.0,97146.0,0.29326735]
[1736923824148,0.0008537,97147.0,97146.0,0.39749427]
[1736923825412,0.0008537,97147.0,97146.0,0.54749427]
[1736923825623,0.0008537,97147.0,97146.0,0.59499427]
[1736923826013,0.01699114,97147.0,97146.0,0.59499427]
[1736923826616,0.01699114,97147.0,97146.0,0.62710761]
[1736923826893,0.01699114,97147.0,97146.0,0.62310761]
[1736923827091,0.01799114,97147.0,97146.0,0.63210761]
[1736923827301,0.0018537,97147.0,97146.0,0.63210761]
[1736923827524,0.0018537,97147.0,97146.0,0.59999427]
[1736923827902,0.0018537,97147.0,97146.0,0.63209463]
[1736923828108,0.0018537,97147.0,97146.0,0.63009463]
[1736923828334,0.0018537,97147.0,97146.0,0.63209463]
[1736923828452,0.0018537,97147.0,97146.0,0.59999427]
[1736923830177,0.01798964,97147.0,97146.0,0.59999427]
[1736923830586,0.0018537,97147.0,97146.0,0.59999427]
[1736923833089,0.00204053,97148.0,97147.0,0.15]
[1736923833287,0.00204053,97148.0,97147.0,0.25525598]
[1736923833487,0.00204053,97148.0,97147.0,0.25422692]
[1736923835292,0.00204053,97148.0,97147.0,0.26322692]
[1736923835969,0.0039767,97150.0,97149.0,0.15]
[1736923836178,0.00412528,97150.0,97149.0,0.26093599]
[1736923836393,0.02026108,97150.0,97149.0,0.25990692]
[1736923837096,0.02026108,97150.0,97149.0,0.26290692]
[1736923837306,0.0004,97159.0,97149.0,0.33920692]
[1736923837459,0.0008535,97173.0,97152.0,0.0763]
[1736923837662,0.0008535,97173.0,97172.0,0.20582]
[1736923838473,0.00090955,97173.0,97172.0,0.20582]
[1736923839580,0.00090955,97173.0,97172.0,0.20682]
[1736923841187,0.00090955,97173.0,97172.0,0.21282]
[1736923841836,0.00090955,97173.0,97172.0,0.21182]
[1736923842431,0.00090955,97173.0,97172.0,0.21282]
[1736923842594,0.00090955,97173.0,97172.0,0.20682]
[1736923842794,0.00090955,97173.0,97172.0,0.21182]
[1736923843002,0.00090955,97173.0,97172.0,0.22226014]
[1736923843760,0.00090955,97173.0,97172.0,0.37226014]
[1736923844527,0.00090955,97173.0,97172.0,0.37126014]
[1736923845661,0.00090955,97173.0,97172.0,0.37226014]
[1736923846709,0.00090955,97173.0,97172.0,0.37126014]
[1736923847116,0.00090955,97173.0,97172.0,0.36626014]
[1736923848110,0.00090955,97173.0,97172.0,0.36726014]
[1736923848324,0.00090955,97173.0,97172.0,0.37326014]
[1736923848815,0.00090955,97173.0,97172.0,0.37226014]
[1736923848982,0.00090955,97173.0,97172.0,0.36626014]
[1736923849171,0.00090955,97173.0,97172.0,0.36726014]
[1736923849800,0.00090955,97173.0,97172.0,0.36626014]
[1736923851146,0.00090955,97173.0,97172.0,0.37326014]
[1736923851858,0.00090955,97173.0,97172.0,0.37426014]
[1736923852490,0.00090955,97173.0,97172.0,0.37326014]
[1736923852611,0.00090955,97173.0,97172.0,0.37426014]
[1736923853071,0.00078566,97173.0,97172.0,0.37426014]
[1736923853301,0.00078566,97173.0,97172.0,0.37326014]
[1736923853585,0.00078566,97173.0,97172.0,0.37426014]
[1736923854568,0.00078566,97173.0,97172.0,0.36726014]
[1736923855346,0.00078566,97173.0,97172.0,0.37326014]
[1736923855731,0.00078566,97173.0,97172.0,0.37426014]
[1736923856096,0.00078566,97173.0,97172.0,0.37326014]
[1736923856296,0.01691972,97173.0,97172.0,0.37326014]
[1736923856538,0.01691972,97173.0,97172.0,0.37426014]
[1736923856747,0.01691972,97173.0,97172.0,0.36726014]
[1736923856905,0.01691972,97173.0,97172.0,0.36626014]
[1736923857110,0.01691972,97173.0,97172.0,0.37326014]
[1736923857310,0.01691972,97173.0,97172.0,0.37426014]
[1736923857653,0.03190527,97173.0,97172.0,0.22426014]
[1736923858855,0.03190527,97173.0,97172.0,0.21626014]
[1736923859075,0.03190527,97173.0,97172.0,0.22426014]
[1736923859434,0.03190527,97173.0,97172.0,0.21726014]
[1736923859844,0.03290527,97173.0,97172.0,0.21726014]
[1736923860223,0.03190527,97173.0,97172.0,0.21626014]
[1736923860802,0.03290527,97173.0,97172.0,0.21626014]
[1736923861217,0.03290527,97173.0,97172.0,0.21726014]
[1736923862089,0.03190527,97173.0,97172.0,0.21726014]
[1736923862449,0.03290527,97173.0,97172.0,0.21726014]
[1736923862612,0.03290527,97173.0,97172.0,0.21626014]
[1736923863034,0.03290527,97173.0,97172.0,0.21726014]
[1736923863237,0.01677121,97173.0,97172.0,0.21726014]
[1736923869842,0.01677121,97173.0,97172.0,0.21905207]
[1736923871677,0.09587121,97173.0,97172.0,0.01323207]
[1736923872187,0.30168921,97173.0,97172.0,0.01323207]
[1736923872566,0.30168921,97173.0,97172.0,0.00279193]
[1736923872891,0.40229903,97173.0,97172.0,0.00279193]
[1736923874091,0.19648103,97173.0,97172.0,0.00279193]
[1736923874300,0.23343082,97173.0,97172.0,0.00279193]
[1736923875733,0.27966063,97173.0,97172.0,0.00279193]
[1736923876078,0.29579588,97173.0,97172.0,0.00279193]
[1736923876477,0.50161388,97173.0,97172.0,0.00279193]
[1736923876731,0.50061388,97173.0,97172.0,0.00179193]
[1736923877099,0.36292446,97173.0,97172.0,0.00279193]
[1736923878327,0.4554781,97173.0,97172.0,0.00279193]
[1736923878752,0.55970502,97173.0,97172.0,0.00279193]
[1736923879657,0.4554781,97173.0,97172.0,0.00279193]
[1736923880584,0.36292446,97173.0,97172.0,0.00279193]
[1736923882814,0.14097121,97173.0,97172.0,0.00279193]
[1736923885851,0.15710642,97173.0,97172.0,0.00279193]
[1736923897946,0.03290642,97173.0,97172.0,0.00279193]
[1736923898561,0.01677121,97173.0,97172.0,0.00279193]
[1736923901008,0.01677121,97173.0,97172.0,0.01292854]
[1736923901709,0.00078566,97173.0,97172.0,0.01292854]
[1736923901852,0.00078566,97173.0,97172.0,0.09202854]
[1736923904582,0.00078566,97173.0,97172.0,0.09402854]
[1736923904814,0.00078566,97173.0,97172.0,0.09202854]
[1736923905166,0.00078566,97173.0,97172.0,0.09102854]
[1736923905390,0.00078566,97173.0,97172.0,0.09602854]
[1736923905794,0.00078566,97173.0,97172.0,0.09102854]
[1736923906193,0.01691951,97173.0,97172.0,0.09102854]
[1736923906709,0.01691951,97173.0,97172.0,0.09202854]
[1736923907114,0.01691951,97173.0,97172.0,0.09102854]
[1736923907795,0.01691951,97173.0,97172.0,0.09202854]
[1736923908145,0.01691951,97173.0,97172.0,0.09602854]
[1736923908689,0.01691951,97173.0,97172.0,0.09202854]
[1736923909172,0.01691951,97173.0,97172.0,0.09702854]
[1736923909667,0.00078566,97173.0,97172.0,0.09702854]
[1736923909809,0.00078566,97173.0,97172.0,0.09705748]
[1736923910009,0.00078566,97173.0,97172.0,0.09805748]
[1736923910629,0.00078566,97173.0,97172.0,0.09705748]
[1736923911154,0.00078566,97173.0,97172.0,0.09805748]
[1736923911533,0.00078566,97173.0,97172.0,0.09602854]
[1736923911962,0.00078566,97173.0,97172.0,0.09705747]
[1736923912379,0.00078566,97173.0,97172.0,0.09205747]
[1736923912986,0.01691913,97173.0,97172.0,0.09305747]
[1736923913341,0.00078566,97173.0,97172.0,0.09705747]
[1736923913543,0.00078566,97173.0,97172.0,0.09205747]
[1736923913745,0.00078566,97173.0,97172.0,0.09305747]
[1736923913995,0.00078566,97173.0,97172.0,0.09805747]
[1736923914303,0.00078566,97173.0,97172.0,0.09705747]
[1736923914506,0.00078566,97173.0,97172.0,0.35025546]
[1736923914709,0.00078566,97173.0,97172.0,0.35125546]
[1736923915226,0.00078566,97173.0,97172.0,0.35693546]
[1736923915972,0.01691901,97173.0,97172.0,0.35593546]
[1736923916175,0.01691901,97173.0,97172.0,0.35093546]
[1736923916374,0.01691901,97173.0,97172.0,0.35193546]
[1736923916816,0.01691901,97173.0,97172.0,0.35093546]
[1736923917172,0.01691901,97173.0,97172.0,0.35193546]
[1736923917645,0.01691901,97173.0,97172.0,0.35593546]
[1736923918046,0.01691901,97173.0,97172.0,0.35193546]
[1736923918392,0.01691901,97173.0,97172.0,0.35693546]
[1736923918753,0.01691901,97173.0,97172.0,0.35193546]
[1736923919300,0.01691901,97173.0,97172.0,0.35593546]
[1736923919501,0.01691901,97173.0,97172.0,0.35693546]
[1736923920136,0.01691901,97173.0,97172.0,0.35593546]
[1736923920485,0.01691901,97173.0,97172.0,0.35693546]
[1736923920935,0.01691901,97173.0,97172.0,0.35593546]
[1736923921542,0.01691901,97173.0,97172.0,0.35093546]
[1736923921764,0.01691901,97173.0,97172.0,0.35193546]
[1736923922003,0.01691901,97173.0,97172.0,0.35693546]
[1736923922985,0.01691901,97173.0,97172.0,0.35093546]
[1736923923329,0.01691901,97173.0,97172.0,0.35193546]
[1736923923739,0.00078566,97173.0,97172.0,0.35993546]
[1736923923898,0.00078566,97173.0,97172.0,0.35893546]
[1736923924102,0.00078566,97173.0,97172.0,0.36093546]
[1736923927530,0.00078566,97173.0,97172.0,0.35293546]
[1736923927726,0.00078566,97173.0,97172.0,0.35093546]
[1736923928114,0.00078566,97173.0,97172.0,0.36093546]
[1736923928341,0.01691864,97173.0,97172.0,0.36093546]
[1736923932085,0.01691864,97173.0,97172.0,0.28183546]
[1736923934408,0.01691864,97173.0,97172.0,0.31394725]
[1736923939276,0.01691864,97173.0,97172.0,0.62267725]
[1736923942596,0.01691864,97173.0,97172.0,0.70237725]
[1736923943051,0.01691864,97173.0,97172.0,2.20237725]
[1736923943495,0.01691864,97173.0,97172.0,0.70237725]
[1736923944502,0.01691864,97173.0,97172.0,1.16228525]
[1736923945145,0.01691864,97173.0,97172.0,1.16028525]
[1736923945386,0.01691864,97173.0,97172.0,1.4351417]
[1736923945610,0.01691864,97173.0,97172.0,1.4381417]
[1736923946026,0.01691864,97173.0,97172.0,1.4351417]
[1736923946442,0.01691864,97173.0,97172.0,1.4381417]
[1736923946625,0.01691864,97173.0,97172.0,1.62307006]
[1736923947611,0.01691864,97173.0,97172.0,3.13207006]
[1736923947939,0.01691864,97173.0,97172.0,2.9471417]
[1736923948752,0.01691864,97173.0,97172.0,1.4471417]
[1736923951762,0.0008535,97191.0,97177.0,0.08501445]
[1736923951955,0.00090954,97191.0,97190.0,0.355782]
[1736923952138,0.00090954,97191.0,97190.0,0.76867892]
[1736923955182,0.00090954,97191.0,97190.0,0.77867892]
[1736923956136,0.00090954,97191.0,97190.0,0.78884242]
[1736923956489,0.00090954,97191.0,97190.0,0.80899489]
[1736923960570,0.0170398,97191.0,97190.0,0.80899489]
[1736923966314,0.00090954,97191.0,97190.0,0.80899489]
[1736923967494,0.00090954,97191.0,97190.0,0.88489489]
[1736923967745,0.00090954,97191.0,97190.0,0.80899489]
[1736923968854,0.0008535,97194.0,97191.0,0.355779]
[1736923969068,0.0008535,97194.0,97193.0,0.355776]
[1736923969262,0.0008535,97194.0,97193.0,1.96126289]
[1736923969736,0.0008535,97194.0,97193.0,1.84446689]
[1736923969941,0.0008535,97194.0,97193.0,1.46686189]
[1736923970464,0.0008535,97194.0,97193.0,1.88006372]
[1736923970777,0.01612887,97208.0,97202.0,0.08501445]
[1736923970983,0.00090973,97206.0,97204.0,0.15]
[1736923971224,0.00090973,97206.0,97205.0,1.92136984]
[1736923971429,0.00090973,97206.0,97205.0,2.79756625]
[1736923972017,0.00090973,97206.0,97205.0,2.80324625]
[1736923972819,0.00090973,97206.0,97205.0,2.80524625]
[1736923973397,0.00090973,97206.0,97205.0,3.07969718]
[1736923973983,0.00090973,97206.0,97205.0,3.07769718]
[1736923974163,0.00090973,97206.0,97205.0,3.07969718]
[1736923974374,0.00090973,97206.0,97205.0,3.72429718]
[1736923974761,0.00090973,97206.0,97205.0,2.24374738]
[1736923974962,7.434e-05,97206.0,97205.0,2.24374738]
[1736923975163,7.434e-05,97206.0,97205.0,2.26217344]
[1736923975391,7.434e-05,97206.0,97205.0,2.26517344]
[1736923975634,7.434e-05,97206.0,97205.0,2.25617344]
[1736923976053,7.434e-05,97206.0,97205.0,1.98172251]
[1736923976257,7.434e-05,97206.0,97205.0,1.99072251]
[1736923976452,0.205646,97255.0,97205.0,1.99072251]
[1736923976453,0.0815,97239.0,97222.0,0.08501445]
[1736923976656,0.0815,97239.0,97238.0,0.20568]
[1736923976657,0.08155604,97239.0,97238.0,0.20568]
[1736923976862,0.08155604,97239.0,97238.0,0.31558692]
[1736923977586,0.08155604,97239.0,97238.0,0.62410692]
[1736923977920,0.08155604,97239.0,97238.0,0.77410692]
[1736923978114,0.00045604,97239.0,97238.0,0.77410692]
[1736923978533,0.00045604,97239.0,97238.0,0.78447558]
[1736923979651,0.00045604,97239.0,97238.0,0.78847558]
[1736923980007,0.00045604,97239.0,97238.0,0.78447558]
[1736923980452,0.00045604,97239.0,97238.0,0.78947558]
[1736923981017,0.00045604,97239.0,97238.0,0.78447558]
[1736923981345,0.00045604,97239.0,97238.0,0.78947558]
[1736923982074,0.00045604,97239.0,97238.0,0.79047558]
[1736923982896,0.00045604,97239.0,97238.0,0.78547558]
[1736923983119,0.00045604,97239.0,97238.0,0.79347558]
[1736923983757,0.00045604,97239.0,97238.0,0.79247558]
[1736923984142,0.00045604,97239.0,97238.0,0.78547558]
[1736923984528,0.00045604,97239.0,97238.0,0.78447558]
[1736923984708,0.00045604,97239.0,97238.0,0.79247558]
[1736923984903,0.00045604,97239.0,97238.0,0.79347558]
[1736923985328,0.00045604,97239.0,97238.0,0.79247558]
[1736923986085,0.00130934,97239.0,97238.0,0.79247558]
[1736923986795,0.00130934,97239.0,97238.0,0.78547558]
[1736923987202,0.00130934,97239.0,97238.0,0.79347558]
[1736923987410,0.00130934,97239.0,97238.0,0.78779558]
[1736923987697,0.00130934,97239.0,97238.0,0.79347558]
[1736923989078,0.00130934,97239.0,97238.0,0.78779558]
[1736923989288,0.00130934,97239.0,97238.0,0.68356866]
[1736923989497,0.08160934,97239.0,97238.0,0.68356866]
[1736923989738,0.08160934,97239.0,97238.0,0.68256866]
[1736923990150,0.08160934,97239.0,97238.0,0.68356866]
[1736923990399,0.14199489,97239.0,97238.0,0.31752]
[1736923990624,0.14199489,97239.0,97238.0,0.31652]
[1736923990798,0.14199489,97239.0,97238.0,0.30852]
[1736923991006,0.14199489,97239.0,97238.0,0.31752]
[1736923991417,0.14199489,97239.0,97238.0,0.30852]
[1736923997082,0.14187109,97239.0,97238.0,0.30852]
[1736923998031,0.15799725,97239.0,97238.0,0.30852]
[1736924000344,0.1430117,97239.0,97238.0,0.30852]
[1736924000575,0.14187109,97239.0,97238.0,0.30852]
[1736924000746,0.14301143,97239.0,97238.0,0.30852]
[1736924001108,0.15799698,97239.0,97238.0,0.30852]
[1736924001687,0.14301143,97239.0,97238.0,0.30852]
[1736924001906,0.01731143,97239.0,97238.0,0.30852]
[1736924002287,0.01731143,97239.0,97238.0,0.41374692]
[1736924002652,0.07859042,97248.0,97238.0,0.41374692]
[1736924002976,0.00049492,97247.0,97245.0,0.411331]
[1736924005320,0.00049492,97247.0,97245.0,0.42186778]
[1736924006071,0.00049492,97247.0,97245.0,0.42386778]
[1736924007272,0.01661879,97247.0,97245.0,0.42386778]
[1736924007679,0.00049492,97247.0,97245.0,0.42386778]
[1736924010703,0.00134802,97247.0,97245.0,0.42386778]
[1736924011930,0.00134802,97247.0,97246.0,0.00102818]
[1736924013018,0.00134802,97247.0,97246.0,0.15102818]
[1736924013198,0.00134802,97247.0,97246.0,0.2552551]
[1736924013399,0.00134802,97247.0,97246.0,0.25422692]
[1736924014013,0.00134802,97247.0,97246.0,0.25722692]
[1736924014195,0.00134802,97247.0,97246.0,0.25422692]
[1736924014526,0.00134802,97247.0,97246.0,0.25722692]
[1736924015198,0.00134802,97247.0,97246.0,0.25422692]
[1736924019007,0.00134802,97247.0,97246.0,0.25822692]
[1736924034205,0.00134802,97247.0,97246.0,0.26001822]
[1736924035059,0.00134802,97247.0,97246.0,0.34231822]
[1736924036377,0.00134802,97247.0,97246.0,0.33831822]
[1736924036730,0.00134802,97247.0,97246.0,0.65281822]
[1736924040169,0.00134802,97247.0,97246.0,0.64681822]
[1736924040925,0.00134802,97247.0,97246.0,0.97851822]
[1736924042013,0.00134802,97247.0,97246.0,0.98551822]
[1736924043754,0.00134802,97247.0,97246.0,0.90321822]
[1736924043972,0.00134802,97247.0,97246.0,0.90889822]
[1736924045109,0.00134802,97247.0,97246.0,0.89589822]
[1736924045517,0.00134802,97247.0,97246.0,0.89989822]
[1736924045921,0.00134802,97247.0,97246.0,0.89589822]
[1736924046276,0.00134802,97247.0,97246.0,0.89021822]
[1736924046483,0.00134802,97247.0,97246.0,0.89989822]
[1736924046671,0.00134802,97247.0,97246.0,0.57419822]
[1736924051676,0.00134802,97247.0,97246.0,2.07419822]
[1736924053295,0.00134802,97247.0,97246.0,0.57019822]
[1736924053903,0.00134802,97247.0,97246.0,0.57519822]
[1736924054308,0.00134802,97247.0,97246.0,0.57019822]
[1736924054883,0.00134802,97247.0,97246.0,0.57419822]
[1736924070531,0.01747071,97247.0,97246.0,0.57419822]
[1736924070680,0.00134802,97247.0,97246.0,0.57419822]
[1736924073586,0.09693357,97247.0,97246.0,0.3142913]
[1736924073788,0.14663357,97247.0,97246.0,0.3142913]
[1736924075211,0.14663357,97247.0,97246.0,0.3102913]
[1736924075964,0.14663357,97247.0,97246.0,0.3132913]
[1736924077335,0.14763357,97247.0,97246.0,0.3132913]
[1736924077906,0.14663357,97247.0,97246.0,0.3132913]
[1736924078317,0.14763357,97247.0,97246.0,0.3132913]